[Event "Icelandic Championship 2024"]
[Site "Mosfellsbaer"]
[Date "2024.04.18"]
[Round "3.6"]
[White "Prudnykova, Olga"]
[Black "Heimisson, Hilmir Freyr"]
[Result "1/2-1/2"]
[ECO "A01"]
[WhiteElo "2263"]
[BlackElo "2361"]
[Annotator "TA"]
[PlyCount "143"]
[EventDate "2024.04.16"]
[EventType "tourn"]
[EventCountry "ISL"]
[SourceTitle "playchess.com"]
[Source "ChessBase"]
[SourceQuality "1"]
[TimeControl "40/5400+30:1800+30"]

{[%evp 9,143,3,4,7,9,10,10,0,4,8,58,-13,0,0,20,-36,-45,-68,-33,-55,-52,-49,-51,-57,-3,-20,-12,0,0,-16,-11,-62,-51,-41,-67,-121,-53,-53,-38,-148,-70,-72,-10,-26,0,-43,-43,-31,5,-64,-71,-63,-75,-129,-126,-114,-102,-121,-54,-127,-118,-127,-115,-240,-222,-350,-278,-274,-281,-272,-267,-259,-250,-248,-220,-226,-188,-191,-185,-166,-169,-267,-212,-287,-270,-484,-466,-453,-442,-426,-371,-362,-302,-451,0,-121,0,-438,-438,-429,-393,-400,-10,-382,-351,-325,-164,-708,0,0,0,0,0,0,0,0,0,0,0,0,0,0,0,0,0,0,0,0,0,0,0,0,0,0,0,0]} 1. b3 {[%emt 0:00:08]} e5 {[%emt 0:05:04]} 2. Bb2 {[%emt 0:00:12]} Nc6 {[%emt 0:00:26]} 3. c4 {[%emt 0:00:46]} Nf6 {[%emt 0:02:55]} 4. e3 {[%emt 0:00:11]} Be7 {[%emt 0:03:01]} 5. Nf3 {[%emt 0:05:56]} e4 {[%emt 0:14:07]} 6. Nd4 {[%emt 0:00:14]} Nxd4 {[%emt 0:00:13]} 7. Bxd4 {[%emt 0:00:06]} b6 {[%emt 0:01:02]} 8. g3 {[%emt 0:07:42]} Bb7 {[%emt 0:07:56]} 9. Bg2 {[%emt 0:00:55]} h5 {[%emt 0:00:29]} (9... d5 $11) 10. h3 {[%emt 0:20:29]} (10. Nc3 $14) 10... c5 {[%emt 0:06:23]} 11. Bb2 {[%emt 0:05:34]} d5 {[%emt 0:00:20]} 12. cxd5 {[%emt 0:01:22]} (12. d3 $11) 12... Qxd5 $15 {[%emt 0:00:08]} 13. Nc3 {[%emt 0:03:28]} Qf5 {[%emt 0:08:07]} 14. Qe2 {[%emt 0:08:51]} O-O {[%emt 0:01:39]} 15. g4 {[%emt 0:04:15]} Qg6 {[%emt 0:01:18]} 16. O-O-O {[%emt 0:05:22]} Rad8 {[%emt 0:01:51]} (16... hxg4 17. hxg4 Nh7 18. Rh5 $16) (16... Rac8 $15) 17. f3 $11 {[%emt 0:10:55]} exf3 {[%emt 0:00:21]} 18. Bxf3 {[%emt 0:00:03]} Bxf3 {[%emt 0:00:09]} 19. Qxf3 {[%emt 0:00:04][%cal Og4g5]} h4 {[%emt 0:00:08]} 20. g5 {[%emt 0:09:34]} Nh5 $15 {[%emt 0:12:48]} (20... Qxg5 21. Rhg1 Qh5 22. Qf4 $11) 21. Ne4 {[%emt 0:01:27] Dodges Ng3} Bd6 {[%emt 0:00:40]} (21... Bxg5 $6 22. Rhg1 f6 23. Rg4 $14) 22. Rhg1 {[%emt 0:03:51]} ({Better is} 22. Nxd6 $1 $15 Rxd6 23. Rhg1) 22... Bg3 {[%emt 0:04:20]} (22... Ng3 $17 23. Nxg3 Bxg3 24. Rxg3 hxg3 25. Qxg3 Rde8) 23. d3 {[%emt 0:04:21]} Rfe8 {[%emt 0:00:47]} 24. Qg4 {[%emt 0:01:21]} (24. Kc2 $15) 24... Rd5 {[%emt 0:02:48]} (24... b5 $1 $17 {[%cal Oc5c4] aiming for ...c4!} 25. Qf3 c4 26. bxc4 bxc4 27. Nxg3 Nxg3 (27... hxg3 $2 28. dxc4 Rc8 29. Rd4 $19) 28. dxc4 Rd3 (28... Qxg5 29. Rxd8 Rxd8 30. Rd1 $17) (28... Qa6 29. Kb1 $17)) 25. Rg2 {[%emt 0:01:48]} Re6 {[%emt 0:05:21]} ({Black should play} 25... Red8 $17 26. Rgd2 Kh7) 26. Rc2 $11 {[%emt 0:01:35]} Kh7 {[%emt 0:00:06]} 27. Re2 {[%emt 0:00:28]} Re8 {[%emt 0:06:48]} 28. Red2 {[%emt 0:00:17]} a5 {[%emt 0:00:09][%cal Oa5a4]} 29. Rf1 {[%emt 0:00:12] [#]} (29. a4 $11) 29... a4 $1 {[%emt 0:01:35]} 30. Qf3 {[%emt 0:00:43]} Rd7 {[%emt 0:02:06]} 31. Qf5 {[%emt 0:00:07]} (31. bxa4 $2 c4 32. Rfd1 cxd3 $19) (31. Kc2 $142) 31... Qxf5 $17 {[%emt 0:02:15]} 32. Rxf5 {[%emt 0:00:03]} Kg6 {[%emt 0:00:07]} (32... axb3 {simplifies} 33. axb3 Bc7 34. Kc2 Ng3) 33. Rf3 {[%emt 0:00:20]} Bb8 {[%emt 0:00:31]} (33... axb3 $17 34. axb3 Bb8) 34. Kc2 {[%emt 0:03:40]} (34. bxa4 $15 Red8 35. a5) 34... axb3+ {[%emt 0:00:17]} 35. axb3 {[%emt 0:00:03]} Ng3 $36 {[%emt 0:00:46][%mdl 2048] Black is in control.} 36. Nxg3 {[%emt 0:01:08]} (36. Nc3 $17) 36... hxg3 $19 {[%emt 0:00:22]} (36... Bxg3 37. e4 $17) 37. h4 {[%emt 0:00:41]} (37. Rg2 $142) 37... Rh8 {[%emt 0:00:18]} 38. e4 {[%emt 0:00:10]} Rxh4 {[%emt 0:00:44]} 39. e5 {[%emt 0:00:05]} Rg4 {[%emt 0:00:50][%cal Og3g2]} (39... Kxg5 40. Rxg3+ Rg4 41. e6 fxe6 42. Rxg4+ Kxg4 43. Rg2+ Kf3 (43... Bg3 $2 44. Be5 $18) 44. Rg6 $15) 40. Rg2 {[%emt 0:00:05]} Rd5 {[%emt 0:04:44]} (40... Kxg5 41. Rfxg3 f5 42. Bc1+ (42. Rxg4+ fxg4 43. Bc1+ Kf5 $17) 42... Kh5 43. e6 $17) 41. Re3 {[%emt 0:03:21]} Kf5 {[%emt 0:06:22][%cal Rd5e5]} (41... Kxg5 42. Rgxg3 Rd8 43. Rxg4+ Kxg4 44. e6 $11) (41... Rxg5 42. Rexg3 f6 43. Rxg5+ fxg5 44. Re2 $17) 42. Rf3+ {[%emt 0:06:26]} Ke6 {[%emt 0:00:28]} ({Don't do} 42... Kxg5 43. Rfxg3 f5 44. Rxg4+ fxg4 45. e6) 43. Rfxg3 {[%emt 0:04:30]} Rxg3 {[%emt 0:00:08]} 44. Rxg3 {[%emt 0:00:03]} Bxe5 {[%emt 0:00:38]} 45. Bxe5 {[%emt 0:04:10]} (45. Re3 $142) 45... Rxe5 {[%emt 0:00:32][%mdl 4096] Endgame. KR-KR} 46. Kc3 {[%emt 0:00:27]} Kf5 {[%emt 0:12:39]} 47. Kc4 $2 {[%emt 0:08:24]} (47. b4 {was worth a try.}) 47... Kf4 {[%emt 0:04:11]} 48. Rg1 {[%emt 0:00:05]} Rxg5 {[%emt 0:00:28]} 49. Rf1+ {[%emt 0:00:37]} Ke3 {[%emt 0:00:07]} 50. Rxf7 {[%emt 0:00:07]} Rg4+ {[%emt 0:00:30]} 51. Kc3 Rg5 $2 {[%emt 0:00:06]} (51... g5 $19 52. Rf5 Rg1) 52. Kc4 $17 {[%emt 0:01:00] [#]} Rg4+ $2 {[%emt 0:00:30][%mdl 8192]} (52... Kd2 $1 $17 53. Rf4 Rg3) 53. Kc3 $1 $19 {[%emt 0:04:15]} g5 {[%emt 0:00:41]} 54. Rf5 {[%emt 0:00:03]} Ke2 {[%emt 0:00:30]} 55. Kc2 {[%emt 0:03:07]} Ke1 $2 {[%emt 0:00:13]} ({Black should try} 55... Rg2 $19 {Hoping for ...g4.} 56. Re5+ Kf3+ 57. Kc3 g4 58. Rf5+ Kg3) 56. Kc3 $2 {[%emt 0:00:26][%mdl 8192]} (56. d4 $11) 56... Kd1 {[%emt 0:00:17]} 57. Re5 {[%emt 0:02:46] [#]} Rg2 {[%emt 0:01:27]} (57... b5 $142 $1 {[%cal Rb5b4] And now ...b4+ would win.} 58. b4 cxb4+ 59. Kb3 Kd2) 58. Kc4 {[%emt 0:00:04]} (58. b4) 58... g4 $2 {[%emt 0:01:42]} (58... Kd2 $19 59. Kb5 Kxd3 (59... g4 60. Kxb6 Kxd3 61. Rxc5 $11) 60. Kxb6 c4 61. bxc4 Kxc4 62. Rc5+ Kd4) 59. Re6 $11 {[%emt 0:00:43] The position is equal.} Rc2+ {[%emt 0:01:43]} 60. Kd5 $1 {[%emt 0:00:05]} Kd2 {[%emt 0:10:27]} 61. Rxb6 {[%emt 0:00:31]} Ke3 {[%emt 0:01:58]} (61... Kxd3 $5 62. Rg6 $8 Rg2 $11) 62. Rg6 {[%emt 0:01:05]} Kf3 {[%emt 0:00:34]} 63. d4 {[%emt 0:00:28]} cxd4 {[%emt 0:00:07]} 64. Kxd4 {[%emt 0:00:05]} g3 {[%emt 0:00:15]} 65. b4 {[%emt 0:00:33][%cal Bb3b4,Bb4b5][%mdl 32]} Rb2 {[%emt 0:00:22]} 66. Kc5 {[%emt 0:00:25]} g2 {[%emt 0:00:18]} 67. b5 {[%emt 0:00:36]} Rc2+ {[%emt 0:00:07]} 68. Kd6 {[%emt 0:00:25]} Rc4 {[%emt 0:01:55] ( -> ...Rg4)} 69. Rxg2 $1 {[%emt 0:00:16]} Kxg2 {[%emt 0:00:06]} 70. b6 {[%emt 0:00:02]} Rb4 {[%emt 0:00:36]} 71. Kc7 {[%emt 0:00:08]} Rxb6 {[%emt 0:00:08]} 72. Kxb6 {[%emt 0:00:03] And White is the lucky defender.   Weighted Error Value: White=0.45/Black=0.48.  Loses game:     	White=1     	---        Missed win:     	---       	Black=3      Mistake:       	White=13    	Black=8      Inaccurate:     	White=2     	Black=3      OK:         	White=26    	Black=17     Best:        	White=5     	Black=5      Strong:       	White=3     	---} 1/2-1/2

[Event "Icelandic Championship 2024"]
[Site "Mosfellsbaer"]
[Date "2024.04.19"]
[Round "4.1"]
[White "Steingrimsson, Hedinn"]
[Black "Heimisson, Hilmir Freyr"]
[Result "0-1"]
[ECO "D10"]
[WhiteElo "2502"]
[BlackElo "2361"]
[Annotator "TA"]
[PlyCount "78"]
[EventDate "2024.04.16"]
[EventType "tourn"]
[EventCountry "ISL"]
[SourceTitle "playchess.com"]
[Source "ChessBase"]
[SourceQuality "1"]
[TimeControl "40/5400+30:1800+30"]

{[%evp 10,78,29,23,23,25,21,25,33,35,34,22,48,36,40,50,68,61,124,116,133,45,79,76,60,10,54,10,75,0,116,54,73,0,0,-89,-87,-76,-50,-75,-96,-124,-69,-70,-77,-74,-83,-78,-51,-53,-54,-44,-45,-443,-437,-435,-426,-773,-693,-961,-915,-29978,-29979,-29990,-75,-928,0,-29990,-29991,-29992,-29993]} 1. d4 {[%emt 0:03:01]} d5 {[%emt 0:00:23]} 2. c4 {[%emt 0:00:03]} c6 {[%emt 0:00:10]} 3. Nc3 {[%emt 0:00:03]} Nf6 {[%emt 0:00:12]} 4. e3 {[%emt 0:00:03]} Bf5 {[%emt 0:00:12]} 5. cxd5 {[%emt 0:00:39]} cxd5 {[%emt 0:00:09]} 6. Qb3 {[%emt 0:00:05]} Nc6 {[%emt 0:00:11]} 7. Qxb7 {[%emt 0:00:08]} Bd7 {[%emt 0:00:06] Threatens to win with ...Rb8.} 8. Qb3 {[%emt 0:00:07][%cal Og1f3]} Rb8 {[%emt 0:00:07] White has an edge.} 9. Qd1 {[%emt 0:00:06]} e5 {[%emt 0:00:14]} 10. Nge2 {[%emt 0:00:13]} e4 {[%emt 0:35:15]} 11. a3 {[%emt 0:00:14]} Bd6 {[%emt 0:00:43]} 12. b4 {[%emt 0:04:05]} h5 {[%emt 0:05:18]} 13. Bd2 {[%emt 0:02:40]} h4 {[%emt 0:00:59]} (13... Kf8 $14) 14. h3 $16 {[%emt 0:01:31]} Rh5 {[%emt 0:01:13]} 15. Nf4 {[%emt 0:35:39]} (15. Nc1 $16) 15... Rg5 {[%emt 0:08:18]} ({Much worse is} 15... Bxf4 16. exf4 Nxd4 17. Be3 $16) 16. Rc1 {[%emt 0:15:11]} Ne7 {[%emt 0:03:18]} 17. Na4 {[%emt 0:02:20]} (17. Nfe2 $14) 17... Kf8 {[%emt 0:10:54]} 18. Nc5 {[%emt 0:00:25]} Kg8 {[%emt 0:00:26]} (18... Bxf4 $1 $11 19. exf4 Rg6) 19. Qc2 {[%emt 0:07:07]} (19. Ne2 $16) 19... Ng6 {[%emt 0:05:45]} (19... Bxf4 $1 $11 20. exf4 Rg6) 20. Nxd7 {[%emt 0:02:13]} (20. Nxg6 $16 Rxg6 21. a4) 20... Nxd7 $14 {[%emt 0:01:40]} 21. Qc6 {[%emt 0:05:38]} (21. Ne2 $16) 21... Nb6 $1 $11 {[%emt 0:00:51]} 22. Nxg6 {[%emt 0:03:43]} (22. Be2 $11) 22... Rxg6 $17 {[%emt 0:00:10]} 23. Qc2 {[%emt 0:00:04]} Qd7 {[%emt 0:04:58]} 24. Qd1 {[%emt 0:02:02] [#]} Qf5 $1 {[%emt 0:00:44] Dodges Qh5. Black is more active.} 25. f4 {[%emt 0:01:54]} exf3 {[%emt 0:05:36]} (25... Rg3 $17 26. Rc6 Qg6) 26. Qxf3 $15 {[%emt 0:00:14]} Bg3+ {[%emt 0:00:19]} 27. Kd1 {[%emt 0:00:20] [#]} Qd7 $40 {[%emt 0:01:53][%mdl 1152] Black has strong compensation. Black wants a kill.} 28. Bd3 {[%emt 0:01:50][%cal Oh1f1]} Rf6 {[%emt 0:00:19]} (28... Qa4+ $5 29. Bc2 Qxa3 $17) 29. Qh5 {[%emt 0:00:58]} g6 {[%emt 0:01:10]} 30. Qg5 {[%emt 0:00:54]} Kg7 {[%emt 0:00:49] ...Qa4+ is the strong threat.} 31. Rf1 $2 {[%emt 0:05:45][%mdl 8192]} ({White must play} 31. Be1 $15) 31... Rxf1+ $19 {[%emt 0:03:29]} 32. Bxf1 {[%emt 0:00:01]} Qa4+ {[%emt 0:00:20]} 33. Ke2 {[%emt 0:00:59]} (33. Rc2 $142 Qxa3 34. Bb5) 33... Qxa3 {[%emt 0:00:25]} 34. Kf3 {[%emt 0:01:29]} Qb2 {[%emt 0:02:09]} 35. Rd1 {[%emt 0:00:05]} Qc2 {[%emt 0:03:31]} 36. Ke2 {[%emt 0:00:02]} Qc4+ {[%emt 0:00:08]} (36... Nc4 $142 37. Qe5+ Bxe5 38. dxe5 Rxb4 39. Kf2 Nxd2 40. Be2 Ne4+ 41. Kg1 Qxe2 42. Rf1 Rb2 (42... Qxe3+ {is a self mate.} 43. Kh2 Nf2 44. Kg1 Rb2 45. e6 Qg3 46. exf7 Nxh3+ 47. Kh1 Qxg2#) 43. Rxf7+ Kxf7 44. e6+ Kg7 45. Kh2 Qxg2#) 37. Kf3 {[%emt 0:00:01]} Qc2 {[%emt 0:00:07]} (37... Qb3 $19 38. Rc1 Qb2) 38. Ke2 {[%emt 0:00:02]} Nc4 {[%emt 0:01:05]} 39. Qe7 {[%emt 0:01:45]} Rb6 {[%emt 0:01:20] Weighted Error Value: White=0.86/Black=0.63.  Loses game:     	White=1     	---        Mistake:       	White=7     	Black=4      Inaccurate:     	White=2     	Black=5      OK:         	White=6     	Black=5      Best:        	White=5     	Black=3      Strong:       	---       	Black=2} 0-1

[Event "Icelandic Championship 2024"]
[Site "Mosfellsbaer"]
[Date "2024.04.19"]
[Round "4.2"]
[White "Stefansson, Hannes"]
[Black "Prudnykova, Olga"]
[Result "1-0"]
[ECO "B94"]
[WhiteElo "2493"]
[BlackElo "2263"]
[Annotator "TA"]
[PlyCount "87"]
[EventDate "2024.04.16"]
[EventType "tourn"]
[EventCountry "ISL"]
[SourceTitle "playchess.com"]
[Source "ChessBase"]
[SourceQuality "1"]
[TimeControl "40/5400+30:1800+30"]

{[%evp 17,87,23,23,31,33,24,72,72,81,69,80,59,71,67,76,75,74,63,112,104,121,96,105,108,89,95,115,71,81,85,113,104,126,131,131,108,122,121,151,143,145,102,57,54,47,81,56,60,58,72,221,208,6499,6275,5422,1101,1485,1493,1483,1483,1290,1216,1131,1016,1177,1123,1252,1216,29981,29982,29982,29983]} 1. e4 {[%emt 0:00:14]} c5 {[%emt 0:00:04]} 2. Nf3 {[%emt 0:00:19]} d6 {[%emt 0:00:07]} 3. d4 {[%emt 0:00:18]} cxd4 {[%emt 0:00:04]} 4. Nxd4 {[%emt 0:00:06]} Nf6 {[%emt 0:00:03]} 5. Nc3 {[%emt 0:00:21]} e5 {[%emt 0:00:10]} 6. Nf3 {[%emt 0:05:22]} Be7 {[%emt 0:03:03]} 7. Bc4 {[%emt 0:01:52]} O-O {[%emt 0:02:41]} 8. O-O {[%emt 0:01:49]} a6 {[%emt 0:01:13]} 9. Bg5 {[%emt 0:04:11]} Nbd7 {[%emt 0:00:54]} 10. a4 {[%emt 0:02:27]} h6 {[%emt 0:03:43]} 11. Bh4 {[%emt 0:23:28]} b6 {[%emt 0:14:27]} (11... g5 $11) 12. Qe2 $16 {[%emt 0:02:49] White is much more active. The black rooks are passive. White is better.} Bb7 {[%emt 0:01:07]} 13. Rfd1 {[%emt 0:02:23]} Qc7 {[%emt 0:15:25]} 14. Nd2 {[%emt 0:02:56]} g5 {[%emt 0:05:08]} 15. Bg3 {[%emt 0:01:18]} Nc5 $1 {[%emt 0:00:26]} 16. f3 {[%emt 0:02:52]} Ne6 {[%emt 0:03:00]} 17. Kh1 {[%emt 0:06:04]} Nd4 {[%emt 0:05:42]} (17... Nf4 $14 18. Bxf4 exf4) 18. Qd3 {[%emt 0:00:52]} Nd7 {[%emt 0:10:21]} 19. Rdc1 {[%emt 0:07:42]} Nc5 {[%emt 0:11:08]} 20. Qf1 {[%emt 0:00:29]} b5 {[%emt 0:02:38]} 21. axb5 {[%emt 0:00:19]} axb5 {[%emt 0:00:05] aiming for ...Rxa1.} 22. Nxb5 {[%emt 0:00:41]} (22. Rxa8 {simplifies} Rxa8 23. Nxb5 Nxb5 24. Bxb5 Ne6 25. c3) 22... Nxb5 {[%emt 0:01:18]} 23. Bxb5 {[%emt 0:00:07]} g4 {[%emt 0:06:17]} 24. Rxa8 {[%emt 0:01:31]} (24. fxg4 Bg5 25. Qe2 Bxd2 26. Qxd2 Kg7) 24... Bxa8 {[%emt 0:02:11]} 25. b4 {[%emt 0:05:25]} (25. fxg4 $6 Bg5 26. Rd1 Bxd2 27. Rxd2 Nxe4 $14) 25... Ne6 {[%emt 0:00:31]} 26. Bc4 {[%emt 0:01:51]} ({But not} 26. fxg4 $6 Qc3 27. Qd3 Qxb4 $14) 26... Bg5 {[%emt 0:00:50] [#]} 27. Rd1 {[%emt 0:00:22]} Rc8 {[%emt 0:04:09]} 28. Bb3 {[%emt 0:01:23]} Nd4 {[%emt 0:00:27]} 29. f4 {[%emt 0:03:10]} ({Stronger than} 29. fxg4 Nxb3 30. cxb3 Bxd2 31. Rxd2 Bxe4 $11) 29... exf4 {[%emt 0:01:30]} 30. Bxf4 {[%emt 0:00:05]} Nxb3 {[%emt 0:00:47]} 31. cxb3 {[%emt 0:00:56] Black must now prevent Bxg5.} Qc2 {[%emt 0:00:40]} 32. Bxg5 {[%emt 0:01:30]} hxg5 {[%emt 0:00:03]} 33. Qe2 {[%emt 0:03:11]} Rc3 {[%emt 0:04:53] A mistake that costs the game.} (33... Bxe4 34. Qxg4 Bg6 35. Rf1) (33... Re8 $16 34. Qxg4 f6) 34. Qxg4 $18 {[%emt 0:01:57]} Rd3 $2 {[%emt 0:00:07]} (34... Kf8 35. Qh5 Rc7) 35. Qxg5+ {[%emt 0:00:16]} Kf8 {[%emt 0:00:13]} 36. Rf1 {[%emt 0:03:51] White wants to mate with Qd8+.} Bc6 {[%emt 0:01:30]} 37. Qh6+ {[%emt 0:02:57]} Kg8 {[%emt 0:00:25] [#]} 38. Qf6 $1 {[%emt 0:01:02]} Be8 {[%emt 0:00:41]} 39. Qe7 {[%emt 0:01:02]} Qc6 {[%emt 0:00:56]} 40. Nc4 {[%emt 0:01:13]} Rd4 {[%emt 0:00:56]} 41. Qg5+ {[%emt 0:34:24]} Kf8 {[%emt 0:30:35]} 42. Ne3 {[%emt 0:00:00]} Qb5 {[%emt 0:00:00] Wards off Nf5} 43. Qh6+ {[%emt 0:00:00]} Kg8 {[%emt 0:00:00]} 44. Rf3 {[%emt 0:00:00] Weighted Error Value: White=0.06 (flawless) /Black=0.16 (very precise) .  Mistake:       	---       	Black=4      Inaccurate:     	White=1     	---        OK:         	White=15    	Black=10     Best:        	White=3     	Black=2      Strong:       	---       	Black=1} 1-0

[Event "Icelandic Championship 2024"]
[Site "Mosfellsbaer"]
[Date "2024.04.19"]
[Round "4.3"]
[White "Gretarsson, Helgi Ass"]
[Black "Gretarsson, Hjorvar Steinn"]
[Result "1-0"]
[ECO "D36"]
[WhiteElo "2468"]
[BlackElo "2518"]
[Annotator "TA"]
[PlyCount "73"]
[EventDate "2024.04.16"]
[EventType "tourn"]
[EventCountry "ISL"]
[SourceTitle "playchess.com"]
[Source "ChessBase"]
[SourceQuality "1"]
[TimeControl "40/5400+30:1800+30"]

{[%evp 25,73,32,28,-8,-14,-12,0,0,0,0,0,-11,0,-6,0,0,0,-16,-17,-41,-56,-72,-26,-29,-29,-120,-104,-96,-108,-136,-124,-140,-123,-110,-133,-144,-86,-189,0,-25,0,0,307,307,451,464,681,657,1141,1152]} 1. d4 {[%emt 0:00:41]} e6 {[%emt 0:00:34]} 2. c4 {[%emt 0:00:07]} Nf6 {[%emt 0:00:12]} 3. Nf3 {[%emt 0:00:11]} d5 {[%emt 0:00:16]} 4. Nc3 {[%emt 0:00:05]} Nbd7 {[%emt 0:01:59]} 5. cxd5 {[%emt 0:00:35]} exd5 {[%emt 0:00:06]} 6. Bg5 {[%emt 0:00:04]} h6 {[%emt 0:01:06]} 7. Bh4 {[%emt 0:00:05]} c6 {[%emt 0:01:49]} 8. e3 {[%emt 0:00:46]} Be7 {[%emt 0:00:07]} 9. Bd3 {[%emt 0:00:16]} O-O {[%emt 0:00:40]} 10. Qc2 {[%emt 0:00:06]} Re8 {[%emt 0:01:08]} 11. O-O {[%emt 0:04:11]} Ne4 {[%emt 0:02:31]} 12. Bxe4 {[%emt 0:00:13]} Bxh4 {[%emt 0:00:25]} 13. Bh7+ {[%emt 0:00:05]} Kh8 {[%emt 0:03:09]} 14. Bf5 {[%emt 0:00:20]} Be7 {[%emt 0:11:35]} 15. Rab1 {[%emt 0:10:05]} Nf6 {[%emt 0:02:52]} 16. b4 {[%emt 0:24:49] The position is equal.} Bd6 {[%emt 0:05:36]} 17. Rfc1 {[%emt 0:00:54]} a6 {[%emt 0:04:40]} 18. a4 {[%emt 0:03:41]} Qe7 {[%emt 0:23:18]} 19. Bxc8 {[%emt 0:12:50]} Raxc8 {[%emt 0:01:25]} 20. Qb3 {[%emt 0:00:07]} Qe6 {[%emt 0:07:48]} 21. Rc2 {[%emt 0:03:14]} g5 {[%emt 0:02:41]} 22. Rbc1 {[%emt 0:03:23]} g4 {[%emt 0:06:11]} 23. Ne1 {[%emt 0:02:07] [#]} g3 $1 {[%emt 0:16:05]} 24. hxg3 $11 {[%emt 0:01:39]} (24. fxg3 $2 {perishes.} Qxe3+ 25. Kf1 Bxg3 $19 (25... Qxd4 $2 26. Ne2 $19)) 24... Bxg3 {[%emt 0:00:39]} 25. Nd3 {[%emt 0:13:06] [#]} (25. Nb1 $11 Bd6 26. Nd2) 25... Ng4 $1 $17 {[%emt 0:02:10][%cal Oe6f5]} 26. Ne2 {[%emt 0:00:14]} Bh2+ {[%emt 0:01:19]} 27. Kf1 {[%emt 0:01:38][%cal Bg1f1,Bf1e1,Be1d2][%mdl 32]} Qf6 {[%emt 0:01:51]} 28. Ndf4 {[%emt 0:04:38]} Bxf4 {[%emt 0:01:26]} 29. Nxf4 {[%emt 0:00:03]} Qh4 {[%emt 0:00:40][%cal Og4f2]} 30. g3 {[%emt 0:01:34]} Qh2 {[%emt 0:00:37] aiming for ...Re4.} 31. Qd3 {[%emt 0:03:39]} (31. Re1 $17 {was necessary.}) 31... Rcd8 $2 {[%emt 0:00:31]} ({Better is} 31... Rc7 $1 $19 {Strongly threatening ...Rce7.} 32. Re1 Rce7) 32. Ke1 {[%emt 0:03:52]} (32. Re1 $5) 32... Re4 {[%emt 0:00:31] Threatens to win with ...Rde8.} 33. Qe2 {[%emt 0:02:17]} h5 {[%emt 0:00:20][%mdl 8192] [#]} (33... Qg1+ $11 {and Black stays safe.} 34. Kd2 Qxf2 35. Qxf2 Nxf2) 34. Qf3 $1 $18 {[%emt 0:00:43]} Rde8 {[%emt 0:00:39] [#]} (34... Ree8 $142 35. Kd1 (35. Qg2 Qxg2 36. Nxg2 Rd6 $16) 35... Rd6) 35. Re2 $1 {[%emt 0:00:09] Kd2 would now be deadly. White is clearly winning.} ({Not} 35. Qg2 Qxg2 36. Nxg2 Rxd4 $15) 35... Kg8 {[%emt 0:00:32]} (35... Rxf4 $142 36. Qxf4 (36. exf4 Qg1+ 37. Kd2 Rxe2+ 38. Qxe2 Qxf2 $18) 36... Kg7) 36. Kd2 {[%emt 0:00:15] Black must now prevent Rh1.} Nf6 {[%emt 0:00:28]} 37. Rh1 {[%emt 0:00:15] Weighted Error Value: White=0.14 (very precise) /Black=0.61.  Loses game:     	---       	Black=1      Missed win:     	---       	Black=1      Mistake:       	White=2     	Black=3      Inaccurate:     	---       	Black=1      OK:         	White=4     	Black=6      Best:        	White=3     	Black=1      Strong:       	White=2     	Black=1} 1-0